bitfinex/quotes_BTCUSD_20240611
["timestamp","ask_amount","ask_price","bid_price","bid_amount"]
[1718099541371,0.22,66954.0,66939.0,0.1]
[1718099541372,0.09251713,66943.0,66940.0,0.3773]
[1718099541701,0.07215996,66941.0,66940.0,0.3773]
[1718099541900,0.07215996,66941.0,66940.0,0.526687]
[1718099543089,0.07315996,66941.0,66940.0,0.67500693]
[1718099543544,0.07415996,66941.0,66940.0,0.68600693]
[1718099543714,0.07315996,66941.0,66940.0,0.68200693]
[1718099543931,0.07315996,66941.0,66940.0,0.75427413]
[1718099544174,0.07315996,66941.0,66940.0,0.74327413]
[1718099544410,0.5,66962.0,66941.0,0.4693]
[1718099544619,0.07215996,66956.0,66951.0,0.14431993]
[1718099544826,0.07215996,66956.0,66941.0,0.5693]
[1718099544827,0.16467709,66956.0,66955.0,0.3773]
[1718099545036,0.16467709,66956.0,66947.0,0.14937]
[1718099545037,0.09251713,66948.0,66947.0,0.14937]
[1718099545243,0.5,66950.0,66949.0,0.149367]
[1718099545448,0.16467709,66956.0,66949.0,0.14431993]
[1718099545624,0.36467709,66956.0,66950.0,0.14431993]
[1718099545828,0.36467709,66956.0,66951.0,0.01443199]
[1718099545829,0.2,66953.0,66951.0,0.01443199]
[1718099546081,0.2,66953.0,66952.0,0.14431993]
[1718099546194,0.16467709,66956.0,66952.0,0.14431993]
[1718099546418,0.16467709,66956.0,66955.0,0.149354]
[1718099546646,0.07215996,66956.0,66955.0,0.67097393]
[1718099546902,0.43295979,66970.0,66959.0,0.7734]
[1718099547110,0.07215996,66965.0,66964.0,0.149333]
[1718099547345,0.5,66971.0,66970.0,0.14932]
[1718099547572,0.07215996,66972.0,66970.0,0.14932]
[1718099547573,0.07215996,66972.0,66971.0,0.149318]
[1718099547778,0.5,66980.0,66971.0,0.14431993]
[1718099547989,0.07215996,66976.0,66972.0,0.023]
[1718099548210,0.07215996,66976.0,66975.0,0.526609]
[1718099548633,0.07215996,66976.0,66975.0,0.14431993]
[1718099549541,0.09251713,66967.0,66966.0,0.04968393]
[1718099549740,0.31251713,66967.0,66966.0,0.04968393]
[1718099549947,0.31251713,66967.0,66964.0,0.003]
[1718099549948,0.29251713,66959.0,66958.0,0.149345]
[1718099550194,0.29251713,66959.0,66958.0,0.29366493]
[1718099550402,0.31251713,66959.0,66958.0,0.29366493]
[1718099550608,0.31251713,66959.0,66958.0,0.14431993]
[1718099551695,0.29251713,66959.0,66958.0,0.14431993]
[1718099552457,0.31251713,66959.0,66958.0,0.14431993]
[1718099553068,0.31251713,66959.0,66958.0,0.15431993]
[1718099553474,0.09251713,66959.0,66958.0,0.14431993]
[1718099553678,0.22,66954.0,66953.0,0.3773]
[1718099553933,0.22,66946.0,66945.0,0.04971061]
[1718099554263,0.27215996,66946.0,66945.0,0.04971061]
[1718099554390,0.11251713,66947.0,66945.0,0.14431993]
[1718099554391,0.09251713,66947.0,66945.0,0.14431993]
[1718099554603,0.07215996,66953.0,66950.0,0.149364]
[1718099554801,0.07215996,66953.0,66952.0,0.14936]
[1718099554997,0.5,66958.0,66957.0,0.149349]
[1718099555226,0.001,66959.0,66957.0,0.52161993]
[1718099555431,0.001,66959.0,66958.0,0.23332899]
[1718099555635,0.001,66959.0,66958.0,0.37764892]
[1718099556005,0.001,66959.0,66958.0,0.67634292]
[1718099556206,0.001,66959.0,66958.0,0.79934292]
[1718099556407,0.07215996,66968.0,66967.0,0.149327]
[1718099556614,0.5,66974.0,66973.0,0.149313]
[1718099556795,0.5,66974.0,66973.0,0.29363293]
[1718099557004,0.5,66981.0,66973.0,0.14431993]
[1718099557224,0.07215996,66976.0,66975.0,0.149309]
[1718099557427,0.27215996,66976.0,66975.0,0.29362893]
[1718099557635,0.29215996,66976.0,66975.0,0.14431993]
[1718099557847,0.29215996,66976.0,66967.0,0.0149327]
[1718099557848,0.2,66969.0,66967.0,0.0149327]
[1718099558059,0.07215996,66968.0,66958.0,0.18398199]
[1718099558266,0.07215996,66959.0,66958.0,0.23332899]
[1718099558700,0.07215996,66959.0,66958.0,0.37764892]
[1718099558926,0.07215996,66959.0,66958.0,0.14431993]
[1718099558927,0.27215996,66959.0,66958.0,0.14431993]
[1718099559587,0.07215996,66959.0,66958.0,0.14431993]
[1718099559826,0.07215996,66959.0,66958.0,0.29366693]
[1718099560704,0.07215996,66959.0,66958.0,0.30066693]
[1718099560912,0.09251713,66962.0,66961.0,0.14934]
[1718099561146,0.09251713,66962.0,66961.0,0.36145592]
[1718099562171,0.29251713,66962.0,66961.0,0.36145592]
[1718099562391,0.09251713,66962.0,66961.0,0.36145592]
[1718099563000,0.09251713,66962.0,66961.0,0.38445592]
[1718099563204,0.09351713,66962.0,66961.0,0.39245592]
[1718099563411,0.001,66962.0,66961.0,0.39245592]
[1718099563646,0.001,66962.0,66961.0,0.49245592]
[1718099563846,0.07215996,66968.0,66967.0,0.149327]
[1718099564072,0.07215996,66968.0,66967.0,0.30857963]
[1718099567028,0.07215996,66968.0,66967.0,0.31857963]
[1718099567270,0.07315996,66968.0,66967.0,0.69387963]
[1718099567686,0.07315996,66968.0,66967.0,0.70387963]
[1718099567900,0.07315996,66968.0,66967.0,0.69387963]
[1718099568321,0.07315996,66968.0,66967.0,0.70387963]
[1718099568540,0.07315996,66968.0,66967.0,0.69387963]
[1718099568756,0.07215996,66968.0,66967.0,0.95820663]
[1718099568954,0.07490899,66969.0,66967.0,0.96820663]
[1718099569180,0.07490899,66969.0,66968.0,0.123]
[1718099569326,0.07215996,66976.0,66975.0,0.149309]
[1718099569760,0.07215996,66976.0,66975.0,0.321618]
[1718099571178,0.07490899,66984.0,66982.0,0.149293]
[1718099571398,0.07490899,66986.0,66982.0,1.08791293]
[1718099571631,0.17215996,66991.0,66982.0,1.23223286]
[1718099571849,0.17215996,66991.0,66990.0,0.149276]
[1718099571850,0.13187796,66991.0,66990.0,0.149276]
[1718099572057,0.07215996,66991.0,66990.0,0.29359593]
[1718099572268,0.07215996,66991.0,66990.0,0.32295552]
[1718099572471,0.059714,66995.0,66990.0,0.32295552]
[1718099572472,0.059714,66995.0,66994.0,0.149267]
[1718099572682,0.07215996,66998.0,66994.0,0.52161993]
[1718099572905,0.07215996,66998.0,66995.0,0.14431993]
[1718099572906,0.32,66996.0,66995.0,0.14431993]
[1718099573126,0.89490899,66982.0,66981.0,0.04940582]
[1718099573545,0.17490899,66973.0,66972.0,0.149314]
[1718099573750,0.17490899,66973.0,66972.0,0.3100586]
[1718099574400,0.39490899,66973.0,66972.0,0.29363393]
[1718099574608,0.89490899,66973.0,66972.0,0.14431993]
[1718099574835,0.07490899,66961.0,66960.0,0.526642]
[1718099575251,0.14706895,66962.0,66961.0,0.14934]
[1718099575459,0.46706895,66962.0,66961.0,0.29365993]
[1718099575670,0.46706895,66962.0,66961.0,0.14431993]
[1718099576325,0.24706895,66962.0,66961.0,0.14431993]
[1718099576553,0.46706895,66962.0,66961.0,0.14431993]
[1718099576766,0.1,66951.0,66949.0,0.3773]
[1718099577004,0.1,66951.0,66947.0,0.04925131]
[1718099577005,0.32,66948.0,66947.0,0.04925131]
[1718099577224,0.07490899,66942.0,66941.0,0.149385]
[1718099577432,0.07490899,66942.0,66941.0,0.2021395]
[1718099578348,0.07490899,66942.0,66941.0,0.2121395]
[1718099578798,0.07490899,66942.0,66941.0,0.2021395]
[1718099579037,0.07490899,66942.0,66941.0,0.2121395]
[1718099579256,0.07490899,66942.0,66941.0,0.35645943]
[1718099579480,0.1,66948.0,66946.0,0.149372]
[1718099579706,0.1,66948.0,66947.0,0.15925713]
[1718099579923,0.07490899,66949.0,66947.0,0.15925713]
[1718099580401,0.01,66965.0,66947.0,0.15925713]
[1718099580402,0.37490899,66957.0,66956.0,0.149351]
[1718099580653,0.37490899,66957.0,66956.0,0.29367093]
[1718099581089,0.57215996,66962.0,66961.0,0.14934]
[1718099581090,0.07215996,66962.0,66961.0,0.14934]
[1718099581315,0.07215996,66962.0,66961.0,0.32302592]
[1718099581836,0.07490899,66964.0,66963.0,0.149336]
[1718099582061,0.07490899,66964.0,66963.0,0.67095593]
[1718099582501,0.07490899,66971.0,66970.0,0.14932]
[1718099582723,0.07490899,66971.0,66970.0,0.30857193]
[1718099582966,0.27490899,66971.0,66970.0,0.30857193]
[1718099583193,0.07490899,66971.0,66970.0,0.30857193]
[1718099584080,0.29490899,66971.0,66970.0,0.14431993]
[1718099584310,0.39490899,66971.0,66970.0,0.15231993]
[1718099584773,0.37490899,66971.0,66970.0,0.16231993]
[1718099584992,0.07215996,66976.0,66975.0,0.149309]
[1718099585215,0.07215996,66976.0,66975.0,0.29362893]
[1718099585411,0.39215996,66976.0,66975.0,0.14431993]
[1718099585649,0.39490899,66971.0,66970.0,0.01]
[1718099585900,0.07490899,66971.0,66970.0,0.14431993]
[1718099586119,0.07490899,66971.0,66970.0,0.3080899]
[1718099586612,0.07215996,66976.0,66975.0,0.149309]
[1718099586832,0.07215996,66976.0,66975.0,0.29362893]
[1718099587749,0.07490899,66985.0,66984.0,0.149289]
[1718099587984,0.07215996,66989.0,66988.0,0.14928]
[1718099588394,0.07215996,66989.0,66988.0,0.29359993]
[1718099589614,0.29215996,66989.0,66988.0,0.29359993]
[1718099590288,0.39490899,66985.0,66984.0,0.002]
[1718099590601,0.39490899,66985.0,66984.0,0.29360893]
[1718099590832,0.39490899,66985.0,66984.0,0.14431993]
[1718099591655,0.39490899,66985.0,66984.0,0.18368142]
[1718099592427,0.39490899,66985.0,66984.0,0.14431993]
[1718099592645,0.29490899,66985.0,66984.0,0.29360893]
[1718099592853,0.39490899,66985.0,66984.0,0.31160893]
[1718099593094,0.07490899,66985.0,66984.0,0.31160893]
[1718099593347,0.07490899,66985.0,66984.0,0.68090893]
[1718099593567,0.07490899,66985.0,66984.0,0.74899982]
[1718099593772,0.07490899,66985.0,66984.0,0.75699982]
[1718099594182,0.29490899,66985.0,66984.0,0.74899982]
[1718099594399,0.29490899,66985.0,66984.0,0.21241082]
[1718099594645,0.39490899,66985.0,66984.0,0.15231993]
[1718099594895,0.39490899,66985.0,66984.0,0.16231993]
[1718099595108,0.71250899,66985.0,66984.0,0.16231993]
[1718099595322,0.72250899,66985.0,66984.0,0.028]
[1718099595558,1.19620899,66985.0,66984.0,0.028]
[1718099595796,1.19620899,66985.0,66984.0,0.008]
[1718099596005,0.29490899,66968.0,66966.0,0.149328]
[1718099596237,0.46706895,66968.0,66967.0,0.14449968]
[1718099596449,0.46706895,66968.0,66967.0,0.21161295]
[1718099597461,0.44706895,66968.0,66967.0,0.36093995]
[1718099597920,0.46706895,66968.0,66967.0,0.36093995]
[1718099598808,0.07490899,66968.0,66967.0,0.36093995]
[1718099599230,0.07490899,66968.0,66967.0,0.36893995]
[1718099599445,0.07490899,66968.0,66967.0,0.37893995]
[1718099599874,0.07490899,66968.0,66967.0,0.37335755]
[1718099600066,0.07490899,66968.0,66967.0,0.36535755]
[1718099600227,0.07490899,66968.0,66967.0,0.37335755]
[1718099600647,0.46706895,66968.0,66967.0,0.37335755]
[1718099600851,0.46706895,66968.0,66967.0,0.36535755]
[1718099601443,0.46706895,66968.0,66967.0,0.14891728]
[1718099601642,0.92666895,66968.0,66967.0,0.14891728]
[1718099601849,0.92666895,66968.0,66967.0,0.14691728]
[1718099602295,0.92666895,66968.0,66967.0,0.15691728]
[1718099602591,0.92666895,66968.0,66967.0,0.14691728]
[1718099602846,0.92666895,66968.0,66967.0,0.15691728]
[1718099602847,0.93666895,66968.0,66967.0,0.15691728]
[1718099602968,0.93666895,66968.0,66967.0,0.17160901]
[1718099603177,0.92666895,66968.0,66967.0,0.17160901]
[1718099605050,0.93666895,66968.0,66967.0,0.17160901]
[1718099605269,0.93666895,66968.0,66967.0,0.15691728]
[1718099605270,1.26256895,66968.0,66967.0,0.15691728]
[1718099605472,1.25256895,66968.0,66967.0,0.15691728]
[1718099605679,1.26256895,66968.0,66967.0,0.15691728]
[1718099605890,1.26256895,66968.0,66967.0,0.018]
[1718099606100,1.26256895,66968.0,66967.0,0.008]
[1718099606303,0.39490899,66955.0,66954.0,0.04968726]
[1718099606519,0.46706895,66955.0,66954.0,0.19400719]
[1718099606729,0.46706895,66955.0,66954.0,0.14431993]
[1718099607134,0.47706895,66955.0,66954.0,0.14431993]
[1718099607346,0.32,66949.0,66946.0,0.149374]
[1718099607548,0.32,66949.0,66948.0,0.14517993]
[1718099608008,0.32,66949.0,66948.0,0.17463532]
[1718099608228,0.32,66949.0,66948.0,0.14517993]
[1718099608899,0.32,66949.0,66948.0,0.15517993]
[1718099609332,0.32,66949.0,66948.0,0.14517993]
[1718099609780,0.32,66949.0,66948.0,0.15517993]
[1718099610477,0.32,66949.0,66948.0,0.16317993]
[1718099610687,0.32,66949.0,66948.0,0.19443502]
[1718099610900,0.32,66949.0,66948.0,0.45943502]
[1718099611124,0.32,66949.0,66948.0,0.44943502]
[1718099611614,0.17490899,66955.0,66948.0,1.20743502]
[1718099611835,0.01,66965.0,66948.0,1.20743502]
[1718099611836,0.1,66967.0,66954.0,0.40931993]
[1718099612089,0.07490899,66973.0,66972.0,0.149316]
[1718099612298,0.02,66983.0,66967.0,0.758]
[1718099612299,0.1,66983.0,66981.0,0.149296]
[1718099612516,0.1,66983.0,66981.0,0.4292256]
[1718099612954,0.1,66983.0,66981.0,0.57354553]
[1718099613164,0.07490899,66984.0,66981.0,0.57354553]
[1718099613814,0.07490899,66984.0,66981.0,0.58154553]
[1718099614273,0.07490899,66984.0,66981.0,0.57354553]
[1718099614902,0.07490899,66984.0,66981.0,0.30854553]
[1718099615159,0.07490899,66984.0,66981.0,0.31854553]
[1718099615394,0.07490899,66984.0,66981.0,0.30854553]
[1718099615803,0.07490899,66984.0,66981.0,0.31854553]
[1718099616028,0.07215996,66989.0,66981.0,0.17624953]
[1718099616237,0.07215996,66989.0,66988.0,0.29359993]
[1718099616952,0.07215996,66989.0,66988.0,1.11119993]
[1718099617166,0.07310596,66998.0,66997.0,0.14926]
[1718099617390,0.07310596,66998.0,66997.0,0.29357993]
[1718099618013,0.39310596,66998.0,66997.0,0.29357993]
[1718099618211,0.39310596,66998.0,66997.0,0.14431993]
[1718099618617,0.07490899,66986.0,66984.0,0.42640249]
[1718099618818,0.07490899,66986.0,66985.0,0.149287]
[1718099619064,0.06059544,66986.0,66985.0,0.59218093]
[1718099619285,0.07215996,66991.0,66990.0,0.149276]
[1718099620231,0.39215996,66991.0,66990.0,0.29359593]
[1718099620902,0.07215996,66991.0,66990.0,0.30059593]
[1718099621013,0.1,67001.0,66997.0,0.14926]
[1718099621243,0.1,67001.0,66997.0,0.67067993]
[1718099621954,0.000946,66998.0,66997.0,0.96919993]
[1718099622329,0.000946,66998.0,66997.0,1.91559993]
[1718099623597,0.000946,66998.0,66997.0,0.30357993]
[1718099623598,0.320946,66998.0,66997.0,0.30357993]
[1718099623815,0.100946,66998.0,66997.0,0.32393792]
[1718099624025,0.17310596,66998.0,66997.0,0.33093792]
[1718099624249,0.00943801,66999.0,66998.0,0.149258]
[1718099624457,0.00943801,66999.0,66998.0,0.76925752]
[1718099624879,0.08159797,66999.0,66998.0,0.76925752]
[1718099625337,0.08159797,66999.0,66998.0,0.79225752]
[1718099625551,0.08159797,66999.0,66998.0,0.80225752]
[1718099626185,0.07215996,67006.0,67005.0,0.149242]
[1718099626398,0.07215996,67006.0,67005.0,0.33148613]
[1718099626644,0.00943801,67008.0,67007.0,0.149238]
[1718099626878,0.00943801,67008.0,67007.0,0.71503393]
[1718099627794,0.22943801,67008.0,67007.0,0.41655793]
[1718099628037,0.20943801,67008.0,67007.0,0.39355793]
[1718099628249,0.00943801,67008.0,67007.0,0.43540614]
[1718099628481,0.32943801,67008.0,67007.0,0.18616814]
[1718099628705,0.78403801,67008.0,67007.0,0.15431993]
[1718099629372,0.76403801,67008.0,67007.0,0.15431993]
[1718099629592,0.30943801,67008.0,67007.0,0.30055793]
[1718099630000,0.31943801,67008.0,67007.0,0.30055793]
[1718099630200,0.32943801,67008.0,67007.0,0.32510614]
[1718099630445,0.32943801,67008.0,67007.0,0.33210614]
[1718099630863,0.32943801,67008.0,67007.0,0.34210614]
[1718099631269,0.32943801,67008.0,67007.0,0.33210614]
[1718099631473,0.32943801,67008.0,67007.0,0.19286814]
[1718099631816,0.32943801,67008.0,67007.0,0.17586814]
[1718099632021,0.32943801,67008.0,66998.0,0.07716359]
[1718099632022,0.38059544,66999.0,66998.0,0.07716359]
[1718099632223,0.38059544,66999.0,66998.0,0.14967993]
[1718099633301,0.38059544,66999.0,66998.0,0.29893793]
[1718099634343,0.36059544,66999.0,66998.0,0.30893793]
[1718099634744,0.38059544,66999.0,66998.0,0.30893793]
[1718099635165,0.36059544,66999.0,66998.0,0.30893793]
[1718099635367,0.38059544,66999.0,66998.0,0.34983172]
[1718099635526,0.38059544,66999.0,66998.0,0.35683172]
[1718099635733,0.36059544,66999.0,66998.0,0.35683172]
[1718099636129,0.26059544,66999.0,66998.0,0.35683172]
[1718099636341,0.28059544,66999.0,66998.0,0.35683172]
[1718099636538,0.28059544,66999.0,66998.0,0.37983172]
[1718099636974,0.28059544,66999.0,66998.0,0.65253172]
[1718099637805,0.28059544,66999.0,66998.0,0.62953172]
[1718099638040,0.38059544,66999.0,66998.0,0.62953172]
[1718099639027,0.38059544,66999.0,66998.0,0.61953172]
[1718099639388,0.38059544,66999.0,66998.0,0.61253172]
[1718099639592,0.38059544,66999.0,66998.0,0.61953172]
[1718099640577,0.36059544,66999.0,66998.0,0.61953172]
[1718099640789,0.06059544,66999.0,66998.0,0.61953172]
[1718099641134,0.06059544,66999.0,66998.0,0.65253172]
[1718099641368,0.26059544,66999.0,66998.0,0.65253172]
[1718099641576,0.28059544,66999.0,66998.0,0.65253172]
[1718099641764,0.06059544,66999.0,66998.0,0.65253172]
[1718099642032,0.06059544,66999.0,66998.0,0.64253172]
[1718099642256,0.28059544,66999.0,66998.0,0.64253172]
[1718099642481,0.28059544,66999.0,66998.0,0.64553172]
[1718099642691,0.28059544,66999.0,66998.0,0.63553172]
[1718099642864,0.28059544,66999.0,66998.0,0.64353172]
[1718099643145,0.28059544,66999.0,66998.0,0.48127372]
[1718099643366,0.88789544,66999.0,66998.0,0.01536]
[1718099644221,0.06059544,66984.0,66983.0,0.421991]
[1718099644223,0.06059544,66984.0,66983.0,0.720574]
[1718099644459,0.1327554,66984.0,66983.0,1.04966773]
[1718099644666,0.1327554,66984.0,66983.0,0.9997991]
[1718099645133,0.1327554,66984.0,66983.0,1.0227991]
[1718099645356,0.1327554,66984.0,66983.0,0.86853603]
[1718099646031,0.1327554,66984.0,66983.0,0.87853603]
[1718099646706,0.3337554,66984.0,66983.0,0.86253603]
[1718099646966,0.4537554,66984.0,66983.0,0.65536833]
[1718099647201,0.4537554,66984.0,66983.0,0.31061093]
[1718099647401,0.4537554,66984.0,66983.0,0.16131993]
[1718099647609,0.4527554,66984.0,66983.0,0.15431993]
[1718099648075,0.4527554,66984.0,66983.0,0.15975192]
[1718099648504,0.4537554,66984.0,66983.0,0.16875192]
[1718099648912,0.4547554,66984.0,66983.0,0.17575192]
[1718099649775,0.4547554,66984.0,66983.0,0.17661192]
[1718099650451,0.4547554,66984.0,66983.0,0.01686]
[1718099650452,1.2265554,66984.0,66983.0,0.01686]
[1718099650687,1.2265554,66984.0,66983.0,0.16117993]
[1718099650688,1.2465554,66984.0,66983.0,0.16117993]
[1718099650907,0.4347554,66984.0,66983.0,0.58317093]
[1718099651116,0.26259544,66984.0,66983.0,0.64148802]
[1718099651316,0.06259544,66984.0,66983.0,0.66448802]
[1718099652046,0.06159544,66984.0,66983.0,0.65748802]
[1718099652274,0.06059544,66984.0,66983.0,0.64848802]
[1718099652691,0.06159544,66984.0,66983.0,0.65748802]
[1718099652904,0.06159544,66984.0,66983.0,0.66448802]
[1718099652905,0.06259544,66984.0,66983.0,0.66448802]
[1718099653329,0.06159544,66984.0,66983.0,0.65548802]
[1718099653581,0.07215996,66991.0,66990.0,0.149276]
[1718099653799,0.07215996,66991.0,66990.0,0.33152353]
[1718099654007,0.53239544,66999.0,66998.0,0.149258]
[1718099654008,0.06059544,66999.0,66998.0,0.149258]
[1718099654214,0.06059544,66999.0,66998.0,0.444958]
[1718099655077,0.06059544,66999.0,66998.0,0.58927793]
[1718099655288,0.06059544,66999.0,66998.0,0.64820572]
[1718099655731,0.06159544,66999.0,66998.0,0.65820572]
[1718099655944,0.001,66999.0,66998.0,0.64820572]
[1718099656157,0.002,66999.0,66998.0,0.79548144]
[1718099656364,0.003,66999.0,66998.0,0.80548144]
[1718099656534,0.002,66999.0,66998.0,0.79848144]
[1718099656934,0.002,66999.0,66998.0,0.80548144]
[1718099656935,0.003,66999.0,66998.0,0.80548144]
[1718099658142,0.003,66999.0,66998.0,1.25568144]
[1718099659129,0.003,66999.0,66998.0,0.80548144]
[1718099660290,0.25899996,67008.0,67007.0,0.149238]
[1718099660493,0.25899996,67008.0,67007.0,0.33148173]
[1718099661055,0.27899996,67008.0,67007.0,0.33148173]
[1718099661331,0.05899996,67008.0,67007.0,0.33148173]
[1718099661793,0.00943801,67008.0,67007.0,0.60418173]
[1718099662009,0.07215996,67009.0,67007.0,0.55494373]
[1718099662184,0.07215996,67009.0,67008.0,0.4720493]
[1718099662553,0.11563715,67016.0,67008.0,0.4720493]
[1718099662554,0.11563715,67016.0,67015.0,0.14922]
[1718099662755,0.11563715,67016.0,67015.0,0.58923993]
[1718099662978,0.11563715,67016.0,67015.0,0.53453993]
[1718099663554,0.33563715,67016.0,67015.0,0.14431993]
[1718099663768,0.43563715,67016.0,67015.0,0.39167452]
[1718099664191,0.43663715,67016.0,67015.0,0.39867452]
[1718099664397,0.76723715,67016.0,67015.0,0.15131993]
[1718099664619,1.25223715,67016.0,67015.0,0.007]
[1718099665069,1.25223715,67016.0,67007.0,0.0149238]
[1718099665070,0.36347719,67008.0,67007.0,0.0149238]
[1718099665281,0.36347719,67008.0,67007.0,0.15924373]
[1718099666146,0.37347719,67008.0,67007.0,0.15924373]
[1718099666556,0.37347719,67008.0,67001.0,0.2727]
[1718099666557,0.32,67002.0,67001.0,0.2727]
[1718099666762,0.32,67002.0,67001.0,0.41701993]
[1718099667727,0.2,67007.0,67006.0,0.14924]
[1718099667936,0.2,67007.0,67006.0,0.29355993]
[1718099668145,0.04347719,67008.0,67007.0,0.149238]
[1718099668351,0.04347719,67008.0,67007.0,0.31655793]
[1718099668874,0.24347719,67008.0,67007.0,0.31655793]
[1718099669083,0.24347719,67008.0,67007.0,0.29455793]
[1718099669084,0.26347719,67008.0,67007.0,0.29455793]
[1718099669310,0.36347719,67008.0,67007.0,0.32967632]
[1718099669532,0.34347719,67008.0,67007.0,0.32867632]
[1718099669739,0.36347719,67008.0,67007.0,0.33267632]
[1718099669949,0.36347719,67008.0,67007.0,0.18943832]
[1718099670354,0.36347719,67008.0,67007.0,0.12737639]
[1718099670563,0.26347719,67008.0,67007.0,0.28261439]
[1718099670794,0.26447719,67008.0,67007.0,0.28261439]
[1718099671004,0.04447719,67008.0,67007.0,0.28261439]
[1718099671218,0.26447719,67008.0,67007.0,0.30561439]
[1718099671435,0.26447719,67008.0,67007.0,0.33017583]
[1718099671640,0.26447719,67008.0,67007.0,0.33817583]
[1718099672066,0.26347719,67008.0,67007.0,0.32417583]
[1718099672276,0.26347719,67008.0,67007.0,0.33617583]
[1718099672485,0.36347719,67008.0,67007.0,0.16393783]
[1718099672712,1.18887719,67008.0,67007.0,0.12537639]
[1718099672940,1.18887719,67008.0,67007.0,0.12937639]
[1718099673158,1.18987719,67008.0,67007.0,0.13537639]
[1718099673341,1.18987719,67008.0,67007.0,0.15583833]
[1718099673543,1.18987719,67008.0,67007.0,0.14983833]
[1718099673771,1.17887719,67008.0,67007.0,0.14983833]
[1718099673978,1.17887719,67008.0,67007.0,0.15283833]
[1718099674763,0.36347719,67008.0,67007.0,0.30807633]
[1718099674948,0.04347719,67008.0,67007.0,0.33107633]
[1718099675157,0.04347719,67008.0,67007.0,0.32807633]
[1718099675372,0.24347719,67008.0,67007.0,0.32807633]
[1718099675603,0.24347719,67008.0,67007.0,0.32707633]
[1718099675798,0.04347719,67008.0,67007.0,0.32707633]
[1718099676002,0.00943801,67017.0,67007.0,0.18383833]
[1718099676207,0.00943801,67017.0,67016.0,0.71545593]
[1718099676445,0.00943801,67017.0,67016.0,0.88767393]
[1718099677525,0.00943801,67017.0,67016.0,0.58923793]
[1718099677735,0.23043801,67017.0,67016.0,0.58923793]
[1718099677918,0.01043801,67017.0,67016.0,0.58923793]
[1718099678140,0.01043801,67017.0,67016.0,0.64816172]
[1718099678732,0.01043801,67017.0,67016.0,0.94659772]
[1718099678861,0.01043801,67017.0,67016.0,1.37519772]
[1718099679300,0.00139282,67019.0,67018.0,0.92304]
[1718099679675,0.00139282,67019.0,67018.0,1.19035993]
[1718099679878,0.00139282,67019.0,67018.0,1.29669597]
[1718099680305,0.07215996,67022.0,67021.0,0.149206]
[1718099680509,0.00943801,67024.0,67023.0,0.149202]
[1718099680724,0.00943801,67024.0,67023.0,0.98762693]
[1718099682555,0.00943801,67024.0,67023.0,0.68922193]
[1718099682749,0.00943801,67024.0,67023.0,0.71768387]
[1718099683446,0.00943801,67024.0,67023.0,0.73268387]
[1718099683655,0.00943801,67024.0,67023.0,0.72368387]
[1718099683919,0.22943801,67024.0,67023.0,0.71768387]
[1718099684173,0.22943801,67024.0,67023.0,0.45448187]
[1718099684382,0.22943801,67024.0,67023.0,0.60968387]
[1718099684825,0.20943801,67024.0,67023.0,0.60968387]
[1718099685048,0.00943801,67024.0,67023.0,0.60968387]
[1718099685262,0.00943801,67024.0,67023.0,0.90808887]
[1718099685466,0.00943801,67024.0,67023.0,1.72618887]
[1718099685683,0.00943801,67024.0,67023.0,1.74018887]
[1718099685889,0.00943801,67024.0,67023.0,1.84018887]
[1718099686069,0.00943801,67024.0,67023.0,1.84918887]
[1718099686324,0.00943801,67024.0,67023.0,1.83418887]
[1718099686742,0.00943801,67024.0,67023.0,1.84918887]
[1718099687166,0.00943801,67024.0,67023.0,1.83418887]
[1718099687379,0.00326154,67030.0,67029.0,0.447567]
[1718099687607,0.00326154,67030.0,67029.0,0.75964363]
[1718099687819,0.00943801,67032.0,67031.0,0.447553]
[1718099688020,0.00943801,67032.0,67031.0,0.71487293]
[1718099688861,0.00943801,67035.0,67034.0,0.149178]
[1718099688862,0.00514687,67035.0,67034.0,0.149178]
[1718099689063,0.00514687,67035.0,67034.0,0.71485393]
[1718099689281,0.00514687,67035.0,67034.0,0.85792189]
[1718099690332,0.00514687,67035.0,67034.0,0.87292189]
[1718099693057,0.00514687,67035.0,67034.0,0.57456589]
[1718099693274,0.22514687,67035.0,67034.0,0.57456589]
[1718099693511,0.20514687,67035.0,67034.0,0.57456589]
[1718099693712,0.22514687,67035.0,67034.0,0.57456589]
[1718099694179,0.22514687,67035.0,67034.0,0.45156589]
[1718099694391,0.22514687,67035.0,67034.0,0.30849793]
[1718099694392,0.20514687,67035.0,67034.0,0.30849793]
[1718099695029,0.22514687,67035.0,67034.0,0.30849793]
[1718099698870,0.20514687,67035.0,67034.0,0.52639793]
[1718099699116,0.00514687,67035.0,67034.0,0.52639793]
[1718099699317,0.00514687,67035.0,67034.0,0.58351339]
[1718099699543,0.00514687,67035.0,67034.0,0.60651339]
[1718099700565,0.20514687,67035.0,67034.0,0.60651339]
[1718099700949,0.00514687,67035.0,67034.0,0.60651339]
[1718099701221,0.07215996,67041.0,67034.0,0.55733539]
[1718099701447,0.07215996,67041.0,67040.0,0.51138393]
[1718099701673,0.07215996,67041.0,67040.0,0.83271293]
[1718099702950,0.07215996,67041.0,67040.0,0.84171293]
[1718099703584,0.07215996,67048.0,67042.0,0.44748]
[1718099703758,0.07215996,67048.0,67047.0,0.149149]
[1718099703999,0.07215996,67048.0,67047.0,0.80966693]
[1718099704204,0.07215996,67048.0,67047.0,0.83266693]
[1718099705718,0.06335996,67048.0,67047.0,0.83266693]
[1718099705925,0.06335996,67048.0,67047.0,0.84166693]
[1718099706127,0.06335996,67048.0,67047.0,0.98421016]
[1718099706329,0.06335996,67048.0,67047.0,0.97521016]
[1718099706531,0.3,67050.0,67049.0,0.447433]
[1718099706735,0.3,67050.0,67049.0,0.69175293]
[1718099707004,0.3,67050.0,67049.0,0.71475293]
[1718099707211,0.3,67050.0,67049.0,0.75950963]
[1718099707626,0.52,67050.0,67049.0,0.46122063]
[1718099707829,0.52,67050.0,67049.0,0.43822063]
[1718099708681,0.52,67050.0,67049.0,0.33822063]
[1718099709083,0.52,67050.0,67049.0,0.34722063]
[1718099709301,0.52,67050.0,67049.0,0.35222063]
[1718099709505,0.52,67050.0,67049.0,0.014]
[1718099709506,1.4273,67050.0,67049.0,0.014]
[1718099709898,1.3132,67039.0,67038.0,0.2179]
[1718099710098,1.3132,67039.0,67038.0,0.36221993]
[1718099710429,1.3132,67039.0,67038.0,0.40341989]
[1718099710660,1.2132,67039.0,67038.0,0.55258889]
[1718099710871,0.1,67040.0,67038.0,0.55258889]
[1718099710872,0.2,67040.0,67039.0,0.149166]
[1718099711083,0.27215996,67046.0,67045.0,0.149153]
[1718099711286,0.07215996,67046.0,67045.0,0.51137293]
[1718099711492,0.07215996,67046.0,67045.0,0.59234182]